bitfinex/quotes_BTCUSD_20260221
["timestamp","ask_amount","ask_price","bid_price","bid_amount"]
[1771692160405,0.0002,68389.0,68384.0,0.07433595]
[1771692160603,0.0002,68389.0,68384.0,0.07333595]
[1771692161015,0.0002,68389.0,68384.0,0.07433595]
[1771692161218,0.0002,68389.0,68384.0,0.07333595]
[1771692161675,0.0002,68389.0,68384.0,0.07433595]
[1771692163050,0.0002,68389.0,68385.0,0.07311512]
[1771692163782,0.0002,68389.0,68384.0,0.07433635]
[1771692164132,0.0002,68389.0,68384.0,0.07333635]
[1771692164434,0.0002,68389.0,68385.0,0.001]
[1771692164641,0.0002,68389.0,68384.0,0.07333635]
[1771692165047,0.0002,68389.0,68384.0,0.07433635]
[1771692165295,0.0002,68389.0,68384.0,0.07333635]
[1771692166483,0.0002,68391.0,68384.0,0.07333635]
[1771692166823,0.07310753,68393.0,68385.0,0.07411544]
[1771692166953,0.07310812,68392.0,68385.0,0.07311544]
[1771692167551,0.0002,68391.0,68385.0,0.07311544]
[1771692168100,0.0002,68391.0,68385.0,0.07411544]
[1771692168265,0.0002,68391.0,68385.0,0.07311544]
[1771692168681,0.0002,68391.0,68385.0,0.07411544]
[1771692169276,0.0002,68391.0,68385.0,0.07511544]
[1771692169654,0.0002,68391.0,68385.0,0.07411544]
[1771692169854,0.07190812,68392.0,68385.0,0.07411544]
[1771692170055,0.07190812,68392.0,68385.0,0.07311544]
[1771692170253,0.07190812,68392.0,68385.0,0.07411544]
[1771692170563,0.07310725,68393.0,68385.0,0.07311544]
[1771692171109,0.07310725,68393.0,68385.0,0.07411544]
[1771692171334,0.07310725,68393.0,68385.0,0.07311544]
[1771692171487,0.0731072,68393.0,68386.0,0.0731138]
[1771692171689,0.0731072,68393.0,68386.0,0.07311424]
[1771692172017,0.07330622,68394.0,68386.0,0.07311424]
[1771692172598,0.07310592,68394.0,68386.0,0.09613303]
[1771692174730,0.07330592,68394.0,68386.0,0.09613303]
[1771692175086,0.07330592,68394.0,68386.0,0.09713303]
[1771692175321,0.07330592,68394.0,68387.0,0.0731133]
[1771692175822,0.07330592,68394.0,68386.0,0.09713303]
[1771692176224,0.07310578,68396.0,68386.0,0.02401879]
[1771692176378,0.07310545,68395.0,68387.0,0.07311293]
[1771692180791,0.07310545,68395.0,68387.0,0.07311318]
[1771692181591,0.07330545,68395.0,68387.0,0.07311318]
[1771692181795,0.02440549,68393.0,68386.0,0.07333233]
[1771692182217,0.31075187,68393.0,68385.0,0.07311467]
[1771692182424,0.02440549,68392.0,68384.0,0.03895074]
[1771692183454,0.02440549,68392.0,68385.0,0.07311467]
[1771692184817,0.02440549,68392.0,68386.0,0.07311422]
[1771692185959,0.02440549,68392.0,68386.0,0.06311422]
[1771692188370,0.02440549,68392.0,68386.0,0.06333422]
[1771692188843,0.07310718,68393.0,68386.0,0.06333422]
[1771692189064,0.07330616,68394.0,68386.0,0.06333422]
[1771692189232,0.0002,68394.0,68388.0,0.0731122]
[1771692189944,0.001,68393.0,68388.0,0.0731122]
[1771692190115,0.0002,68394.0,68388.0,0.0731122]
[1771692190419,0.0002,68394.0,68387.0,0.07311327]
[1771692190596,0.07330584,68394.0,68387.0,0.07311327]
[1771692190809,0.07330584,68394.0,68386.0,0.06333422]
[1771692191313,0.07310264,68397.0,68388.0,0.07311147]
[1771692192082,0.07310264,68397.0,68389.0,0.07311077]
[1771692192962,0.0001321,68398.0,68388.0,0.07311147]
[1771692193145,0.0001226,68408.0,68392.0,0.02440733]
[1771692193291,0.0001226,68408.0,68403.0,0.04421315]
[1771692193491,0.0001226,68408.0,68403.0,0.03694694]
[1771692193735,0.0001226,68408.0,68398.0,0.16437893]
[1771692194045,0.0001226,68408.0,68405.0,0.07309388]
[1771692194391,0.0001226,68408.0,68404.0,0.07309483]
[1771692194589,0.00051155,68408.0,68404.0,0.07309483]
[1771692195215,0.00151155,68408.0,68404.0,0.07309483]
[1771692195743,0.00051155,68408.0,68404.0,0.07309483]
[1771692196108,0.00051155,68408.0,68405.0,0.07309392]
[1771692196645,0.00051155,68408.0,68401.0,0.07309749]
[1771692197442,0.00051155,68408.0,68402.0,0.07309703]
[1771692197650,0.07360246,68408.0,68399.0,0.07309976]
[1771692197871,0.07360245,68408.0,68399.0,0.07309976]
[1771692198210,0.00051155,68408.0,68401.0,0.07309764]
[1771692198494,0.07360241,68408.0,68401.0,0.07309764]
[1771692198849,0.00051155,68408.0,68401.0,0.07309764]
[1771692199189,0.07360248,68408.0,68401.0,0.07309764]
[1771692199685,0.00051155,68408.0,68401.0,0.07309764]
[1771692200071,0.07360263,68408.0,68401.0,0.07309764]
[1771692200591,0.07360263,68408.0,68400.0,0.07309909]
[1771692200801,0.00051155,68408.0,68401.0,0.07309759]
[1771692200947,0.07360259,68408.0,68401.0,0.07309759]
[1771692201749,0.07380259,68408.0,68401.0,0.07309759]
[1771692201950,0.07380259,68408.0,68400.0,0.07309904]
[1771692202187,0.09658065,68407.0,68399.0,0.07309993]
[1771692202609,0.24122339,68404.0,68390.0,0.16453893]
[1771692202759,0.02348833,68403.0,68390.0,0.00016]
[1771692202956,0.02348833,68402.0,68390.0,0.00016]
[1771692203177,0.02348833,68402.0,68394.0,0.07310494]
[1771692203383,0.07309731,68402.0,68394.0,0.07310494]
[1771692203711,0.02348833,68400.0,68391.0,0.07310874]
[1771692203865,0.02348833,68398.0,68387.0,0.07311258]
[1771692204071,0.0731044,68396.0,68387.0,0.07311237]
[1771692204256,0.02348833,68394.0,68384.0,0.0001226]
[1771692204455,0.02348833,68394.0,68387.0,0.07311297]
[1771692207221,0.07310663,68394.0,68386.0,0.07311435]
[1771692207426,0.07310663,68394.0,68384.0,0.0001226]
[1771692207427,0.09659615,68393.0,68384.0,0.0001226]
[1771692207628,0.0731071,68393.0,68385.0,0.07311537]
[1771692207847,0.02348833,68392.0,68385.0,0.07311537]
[1771692208017,0.02348833,68392.0,68387.0,0.001]
[1771692208220,0.02348833,68392.0,68385.0,0.07311537]
[1771692208626,0.02348833,68392.0,68386.0,0.07311425]
[1771692209025,0.02348833,68392.0,68387.0,0.00022]
[1771692209248,0.02348833,68392.0,68387.0,0.00122]
[1771692209447,0.02348833,68392.0,68387.0,0.00022]
[1771692211245,0.02348833,68392.0,68387.0,0.00122]
[1771692212063,0.02348833,68392.0,68387.0,0.00022]
[1771692212310,0.02348833,68392.0,68387.0,0.00122]
[1771692212671,0.02348833,68392.0,68388.0,0.07311224]
[1771692214609,0.02348833,68392.0,68388.0,0.07411224]
[1771692215394,0.02348833,68392.0,68388.0,0.07511224]
[1771692215710,0.02348833,68392.0,68388.0,0.00122]
[1771692217030,0.02348833,68392.0,68388.0,0.00222]
[1771692217209,0.02348833,68392.0,68388.0,0.00122]
[1771692217410,0.02348833,68392.0,68388.0,0.00022]
[1771692217617,0.02348833,68392.0,68388.0,0.00122]
[1771692218249,0.02348833,68392.0,68388.0,0.00022]
[1771692218638,0.02348833,68392.0,68388.0,0.00122]
[1771692218802,0.02348833,68392.0,68388.0,0.00022]
[1771692219592,0.07310398,68396.0,68388.0,0.07333206]
[1771692220230,0.07310398,68396.0,68388.0,0.07433206]
[1771692220431,0.07310398,68396.0,68389.0,0.07311077]
[1771692221684,0.07310398,68396.0,68388.0,0.07333206]
[1771692221981,0.07310398,68396.0,68389.0,0.001]
[1771692222148,0.07310398,68396.0,68389.0,0.00122]
[1771692223182,0.07310398,68396.0,68389.0,0.00022]
[1771692223789,0.07310488,68395.0,68389.0,0.00022]
[1771692223998,0.0731058,68396.0,68389.0,0.00122]
[1771692224204,0.0731058,68396.0,68389.0,0.00022]
[1771692224569,0.0731058,68396.0,68389.0,0.00122]
[1771692224753,0.02453746,68397.0,68389.0,0.00122]
[1771692224957,0.02453746,68397.0,68389.0,0.00022]
[1771692225167,0.07310369,68396.0,68389.0,0.00022]
[1771692229118,0.07310477,68395.0,68389.0,0.00022]
[1771692229881,0.07330383,68396.0,68389.0,0.00022]
[1771692230789,0.07330383,68396.0,68389.0,0.00122]
[1771692231224,0.07330383,68396.0,68389.0,0.00022]
[1771692231420,0.07310479,68395.0,68389.0,0.00022]
[1771692232814,0.07310479,68395.0,68389.0,0.00122]
[1771692233221,0.07310479,68395.0,68389.0,0.00022]
[1771692233642,0.09764218,68397.0,68389.0,0.00022]
[1771692233643,0.07310128,68399.0,68391.0,0.31449945]
[1771692233950,0.0731029,68397.0,68391.0,0.24139045]
[1771692234142,0.07310179,68398.0,68391.0,0.24139045]
[1771692234345,0.07310257,68399.0,68391.0,0.24139045]
[1771692234550,0.07310279,68397.0,68391.0,0.24139045]
[1771692234772,0.07310279,68397.0,68389.0,0.07332905]
[1771692235404,0.07310373,68396.0,68389.0,0.07332905]
[1771692236462,0.00016,68400.0,68384.0,0.29258653]
[1771692236463,0.07311306,68388.0,68384.0,0.0001226]
[1771692236674,0.02453746,68387.0,68380.0,0.00038]
[1771692236878,0.02453746,68387.0,68380.0,0.07350053]
[1771692237926,0.02453746,68387.0,68382.0,0.00029956]
[1771692238519,0.02453746,68387.0,68382.0,0.00054876]
[1771692240566,0.02453746,68387.0,68382.0,0.00154876]
[1771692241183,0.02453746,68386.0,68377.0,0.00022]
[1771692241383,0.02453746,68386.0,68375.0,0.00022]
[1771692241384,0.09765636,68382.0,68375.0,0.00022]
[1771692241562,0.02453746,68382.0,68375.0,0.00022]
[1771692241775,0.09765612,68382.0,68375.0,0.00022]
[1771692242434,0.07311974,68381.0,68375.0,0.00022]
[1771692242645,0.02453746,68382.0,68375.0,0.00022]
[1771692243245,0.02453746,68379.0,68375.0,0.00022]
[1771692243448,0.07311771,68383.0,68375.0,0.07334512]
[1771692243760,0.02453746,68385.0,68375.0,0.00022]
[1771692244149,0.07311903,68382.0,68375.0,0.00022]
[1771692244504,0.07311991,68381.0,68375.0,0.00022]
[1771692245455,0.07311903,68382.0,68375.0,0.00022]
[1771692246201,0.07311903,68382.0,68375.0,0.07334596]
[1771692246843,0.31700129,68385.0,68375.0,0.00022]
[1771692247046,0.07312077,68381.0,68375.0,0.00022]
[1771692247960,0.07311972,68381.0,68375.0,0.00022]
[1771692248270,0.07311874,68382.0,68375.0,0.00022]
[1771692248429,0.07311972,68381.0,68375.0,0.00022]
[1771692249370,0.07312082,68380.0,68375.0,0.00022]
[1771692249573,0.07311953,68382.0,68375.0,0.00022]
[1771692249774,0.07311953,68382.0,68375.0,0.07334598]
[1771692249991,0.07311953,68382.0,68375.0,0.00022]
[1771692251149,0.07311988,68381.0,68375.0,0.00022]
[1771692252185,0.07311868,68382.0,68375.0,0.07334599]
[1771692252759,0.07311774,68383.0,68375.0,0.07334599]
[1771692254061,0.07311774,68383.0,68376.0,0.07312498]
[1771692254257,0.07311892,68382.0,68375.0,0.00022]
[1771692254481,0.07311892,68382.0,68375.0,0.07334611]
[1771692254709,0.07311892,68382.0,68375.0,0.00022]
[1771692255104,0.07311774,68383.0,68375.0,0.07334571]
[1771692258635,0.0002,68382.0,68375.0,0.07334571]
[1771692259496,0.04782728,68384.0,68376.0,0.07312442]
[1771692259705,0.29245181,68388.0,68375.0,0.07334571]
[1771692259706,0.1758,68390.0,68382.0,0.02480251]
[1771692259900,0.17586823,68390.0,68382.0,0.2760567]
[1771692260253,0.07311407,68387.0,68382.0,0.25125419]
[1771692260399,0.07311424,68388.0,68383.0,0.02480251]
[1771692260606,0.07311526,68386.0,68379.0,0.02480251]
[1771692260849,0.07311553,68385.0,68377.0,0.32437792]
[1771692262375,0.07311526,68386.0,68377.0,0.32437792]
[1771692262724,0.07311526,68386.0,68378.0,0.07312216]
[1771692263056,0.07311556,68385.0,68378.0,0.07312216]
[1771692263207,0.07311526,68386.0,68378.0,0.07312216]
[1771692263412,0.0731156,68385.0,68378.0,0.07312216]
[1771692263613,0.0731156,68385.0,68377.0,0.34918043]
[1771692266355,0.0731156,68385.0,68378.0,0.07312286]
[1771692266576,0.0731156,68385.0,68377.0,0.34918043]
[1771692267702,0.17586823,68390.0,68379.0,0.02480251]
[1771692268003,0.07311407,68387.0,68379.0,0.02480251]
[1771692268156,0.07311448,68386.0,68379.0,0.02480251]
[1771692268367,0.07311349,68387.0,68379.0,0.09792423]
[1771692269685,0.07311445,68386.0,68379.0,0.09792423]
[1771692270180,0.07311361,68387.0,68379.0,0.09792423]
[1771692275449,0.0002,68388.0,68379.0,0.0979237]
[1771692275650,0.0002,68388.0,68382.0,0.07311825]
[1771692276102,0.0002,68388.0,68381.0,0.0731197]
[1771692277002,0.07331235,68388.0,68381.0,0.0731197]
[1771692277215,0.07311461,68386.0,68377.0,0.07334204]
[1771692277360,0.07311347,68387.0,68379.0,0.073121]
[1771692277560,0.07331295,68388.0,68380.0,0.07312052]
[1771692281936,0.07331295,68388.0,68379.0,0.073121]
[1771692282082,0.07311331,68387.0,68379.0,0.073121]
[1771692282289,0.0731149,68386.0,68379.0,0.073121]
[1771692282526,0.07311331,68387.0,68379.0,0.073121]
[1771692284133,0.07411331,68387.0,68379.0,0.073121]
[1771692284333,0.07311331,68387.0,68378.0,0.0731209]
[1771692284890,0.07311331,68387.0,68379.0,0.00022]
[1771692285340,0.0002,68395.0,68388.0,0.07311136]
[1771692285541,0.0002,68395.0,68388.0,0.00011672]
[1771692286248,0.07310671,68394.0,68388.0,0.00011672]
[1771692287051,0.0002,68395.0,68388.0,0.07322813]
[1771692287348,0.31634249,68400.0,68388.0,0.07322813]
[1771692287349,0.0001352,68406.0,68392.0,0.02476637]
[1771692287606,0.0001352,68406.0,68390.0,0.00016]
[1771692287607,0.0001352,68406.0,68396.0,0.23749714]
[1771692287805,0.0001352,68406.0,68401.0,0.02476637]
[1771692288248,0.17564,68419.0,68403.0,0.02476637]
[1771692288249,0.000197,68412.0,68403.0,0.02476637]
[1771692288447,0.07308771,68411.0,68404.0,0.07309486]
[1771692288662,0.07308771,68411.0,68403.0,0.09786226]
[1771692290902,0.07308901,68410.0,68402.0,0.07309693]
[1771692291102,0.000197,68412.0,68400.0,0.23765346]
[1771692291103,0.07309107,68408.0,68401.0,0.07309833]
[1771692292022,0.07309001,68409.0,68401.0,0.07309833]
[1771692292427,0.07309195,68407.0,68400.0,0.23765346]
[1771692292639,0.07309001,68409.0,68401.0,0.07309799]
[1771692296269,0.09687315,68409.0,68401.0,0.07309799]
[1771692297961,0.09687315,68409.0,68400.0,0.07325894]
[1771692297962,0.07309101,68408.0,68400.0,0.0732591]
[1771692298482,0.07309101,68408.0,68401.0,0.00022]
[1771692298674,0.07308877,68410.0,68401.0,0.00022]
[1771692298971,0.0033051,68420.0,68401.0,0.00022]
[1771692298972,0.24871986,68419.0,68408.0,0.24787342]
[1771692299183,0.07308285,68416.0,68408.0,0.07309084]
[1771692299414,0.0002,68410.0,68408.0,0.07309084]
[1771692299584,0.17564,68419.0,68401.0,0.00022]
[1771692299585,0.24766082,68418.0,68401.0,0.00022]
[1771692299731,0.17564,68419.0,68410.0,0.07308835]
[1771692300095,0.17564,68419.0,68408.0,0.02476637]
[1771692300289,0.17564,68419.0,68388.0,0.43867109]
[1771692300290,0.00016,68410.0,68375.0,0.03931511]
[1771692300433,0.02378314,68402.0,68392.0,0.07310783]
[1771692300635,0.0730995,68400.0,68390.0,0.07326919]
[1771692300848,0.0734884,68400.0,68390.0,0.07326919]
[1771692301646,0.0003889,68400.0,68392.0,0.09787355]
[1771692302006,0.07309856,68401.0,68394.0,0.02484282]
[1771692303910,0.07309944,68400.0,68394.0,7.645e-05]
[1771692304110,0.07310049,68399.0,68394.0,7.645e-05]
[1771692304721,0.07310337,68397.0,68390.0,0.00016]
[1771692306002,0.16439452,68401.0,68380.0,0.00016]
[1771692306204,0.16439452,68401.0,68372.0,0.00022]
[1771692306205,0.07311739,68384.0,68377.0,0.0003123]
[1771692306412,0.02378314,68383.0,68379.0,0.00033672]
[1771692306607,0.07311739,68384.0,68379.0,0.00033672]
[1771692306834,0.07311739,68384.0,68380.0,0.00022]
[1771692306993,0.07311762,68383.0,68380.0,0.00022]
[1771692307395,0.07311739,68384.0,68380.0,0.00022]
[1771692308049,0.07311764,68383.0,68380.0,0.00022]
[1771692308830,0.07311764,68383.0,68380.0,0.00122]
[1771692309043,0.07311764,68383.0,68380.0,0.00022]
[1771692309237,0.07311764,68383.0,68380.0,0.00122]
[1771692309562,0.07311764,68383.0,68380.0,0.00022]
[1771692310202,0.07311739,68384.0,68380.0,0.00022]
[1771692310952,0.07311739,68384.0,68380.0,0.00122]
[1771692311152,0.07311739,68384.0,68380.0,0.00022]
[1771692311555,0.07311739,68384.0,68380.0,0.00122]
[1771692311943,0.07311761,68383.0,68380.0,0.00122]
[1771692312346,0.07311739,68384.0,68380.0,0.00122]
[1771692312553,0.07311772,68383.0,68380.0,0.00122]
[1771692312770,0.07311772,68383.0,68380.0,0.00022]
[1771692313565,0.07331739,68384.0,68380.0,0.00022]
[1771692314077,0.07331739,68384.0,68380.0,0.00122]
[1771692314498,0.07331739,68384.0,68380.0,0.00022]
[1771692314699,0.07331739,68384.0,68380.0,0.00122]
[1771692315097,0.07331739,68384.0,68380.0,0.00022]
[1771692315303,0.07331739,68384.0,68380.0,0.00122]
[1771692323408,0.07331739,68384.0,68380.0,0.00022]
[1771692323608,0.09707699,68384.0,68377.0,0.0003123]
[1771692323804,0.09707699,68384.0,68377.0,0.00038053]
[1771692324212,0.07311757,68385.0,68377.0,0.07350418]
[1771692324928,0.07311641,68386.0,68378.0,0.07312265]
[1771692325130,0.0731128,68388.0,68380.0,0.07312068]
[1771692325332,0.0731128,68388.0,68380.0,0.07312079]
[1771692326374,0.00016,68390.0,68370.0,0.16477452]
[1771692326375,0.0237596,68375.0,68370.0,0.00038]
[1771692326782,0.07312339,68378.0,68370.0,0.07351139]
[1771692326959,0.073124,68377.0,68370.0,0.00038]
[1771692329092,0.073124,68377.0,68370.0,0.00138]
[1771692329417,0.07312146,68380.0,68370.0,0.00138]
[1771692329644,0.07312283,68379.0,68371.0,0.33153334]
[1771692329840,0.07312146,68380.0,68371.0,0.25840318]
[1771692330639,0.073124,68377.0,68370.0,0.00038]
[1771692331889,0.07312368,68378.0,68370.0,0.0735114]
[1771692332291,0.07312368,68378.0,68370.0,0.0745114]
[1771692333025,0.07312415,68377.0,68370.0,0.00138]
[1771692333502,0.07312324,68378.0,68370.0,0.07351143]
[1771692333699,0.07312324,68378.0,68371.0,0.00022]
[1771692334067,0.07312403,68377.0,68371.0,0.00022]
[1771692334727,0.07312324,68378.0,68371.0,0.00022]
[1771692335101,0.07312401,68377.0,68371.0,0.00022]
[1771692335302,0.07312324,68378.0,68371.0,0.00022]
[1771692336636,0.07312324,68378.0,68371.0,0.00122]
[1771692336835,0.07312324,68378.0,68371.0,0.00022]
[1771692338166,0.07312324,68378.0,68371.0,0.07335034]
[1771692338371,0.07312324,68378.0,68371.0,0.07435034]
[1771692339671,0.07312324,68378.0,68371.0,0.07335034]
[1771692339972,0.07312324,68378.0,68371.0,0.07435034]
[1771692343633,0.07312209,68379.0,68371.0,0.07435034]
[1771692344676,0.07312299,68378.0,68371.0,0.07435034]
[1771692344931,0.07312299,68378.0,68371.0,0.00122]
[1771692345343,0.07312388,68379.0,68371.0,0.0743501]
[1771692345651,0.07312388,68379.0,68371.0,0.0733501]
[1771692345997,0.07312388,68379.0,68371.0,0.0743501]
[1771692346212,0.07312039,68381.0,68371.0,0.0733501]
[1771692346443,0.07312039,68381.0,68371.0,0.0743501]
[1771692346848,0.07312147,68380.0,68372.0,0.0731285]
[1771692347048,0.0733228,68379.0,68371.0,0.0743501]
[1771692347252,0.0733228,68379.0,68371.0,0.0733501]
[1771692347796,0.07312347,68378.0,68371.0,0.00022]
[1771692348193,0.07312347,68378.0,68371.0,0.07335009]
[1771692348896,0.02440223,68379.0,68371.0,0.00022]
[1771692349100,0.07312313,68378.0,68371.0,0.0743502]
[1771692349305,0.07312313,68378.0,68371.0,0.0733502]
[1771692349706,0.07312313,68378.0,68371.0,0.0743502]
[1771692349918,0.07312313,68378.0,68371.0,0.0733502]
[1771692350252,0.07312313,68378.0,68371.0,0.0743502]
[1771692350414,0.09752484,68379.0,68371.0,0.0733502]
[1771692350743,0.0002,68379.0,68371.0,0.0743502]
[1771692350944,0.0002,68379.0,68372.0,0.07312935]
[1771692352890,0.0002,68379.0,68372.0,0.07412935]
[1771692353583,0.07312152,68380.0,68372.0,0.07412935]
[1771692354779,0.0002,68384.0,68374.0,0.07312721]
[1771692354984,0.07311948,68382.0,68374.0,0.07312721]
[1771692355727,0.07311966,68383.0,68374.0,0.07312721]
[1771692355858,0.02420223,68387.0,68374.0,0.25898555]
[1771692356071,0.07311482,68386.0,68378.0,0.07312255]
[1771692356270,0.07322287,68386.0,68378.0,0.07312255]
[1771692358432,0.00016,68390.0,68375.0,0.02487926]
[1771692358647,0.00016,68390.0,68383.0,0.07311758]
[1771692359204,0.07327035,68390.0,68383.0,0.07311758]
[1771692359852,0.0002,68386.0,68382.0,0.07311831]
[1771692361071,0.00016,68390.0,68383.0,0.07311739]
[1771692361244,0.07310659,68394.0,68386.0,0.0731143]
[1771692363252,0.07310691,68393.0,68386.0,0.0731143]
[1771692363679,0.07311125,68389.0,68380.0,0.00016]
[1771692363886,0.07311125,68389.0,68380.0,0.07327997]
[1771692364258,0.07311305,68388.0,68381.0,0.07311963]
[1771692364890,0.07311148,68389.0,68381.0,0.07311963]
[1771692365707,0.07311022,68390.0,68382.0,0.07311844]
[1771692366064,0.09730944,68393.0,68381.0,0.2924789]
[1771692366515,0.09730944,68393.0,68385.0,0.07311458]
[1771692367069,0.0002,68388.0,68385.0,0.07311458]
[1771692367379,0.07310675,68394.0,68386.0,0.07311389]
[1771692368779,0.07325025,68394.0,68386.0,0.07311389]
[1771692368983,0.07310712,68393.0,68386.0,0.07311389]
[1771692369610,0.07325062,68393.0,68386.0,0.07311389]
[1771692373837,0.07345062,68393.0,68386.0,0.07311389]
[1771692374785,0.07245062,68393.0,68386.0,0.07311389]
[1771692376449,0.07245062,68393.0,68385.0,0.07311458]
[1771692381513,0.07245062,68393.0,68386.0,0.07311401]
[1771692384231,0.07245062,68393.0,68386.0,0.07411401]
[1771692384389,0.0003435,68393.0,68385.0,0.07311458]
[1771692384950,0.07311083,68390.0,68382.0,0.07311794]
[1771692385197,0.0003435,68393.0,68381.0,0.07333893]
[1771692385198,0.02312326,68392.0,68381.0,0.00022]
[1771692385400,0.02312326,68390.0,68381.0,0.07333963]
[1771692385585,0.02312326,68390.0,68382.0,0.07311863]
[1771692386342,0.07325275,68391.0,68383.0,0.07311653]
[1771692386552,0.07325275,68391.0,68384.0,0.07311636]
[1771692386553,0.0001435,68391.0,68384.0,0.07311636]
[1771692386765,0.0001435,68391.0,68385.0,0.07333541]
[1771692386948,0.0001435,68391.0,68385.0,0.00022]
[1771692387156,0.0001435,68391.0,68386.0,0.0004]
[1771692387806,0.02312326,68390.0,68382.0,0.07311814]
[1771692388815,0.09623498,68389.0,68381.0,0.00022]
[1771692389602,0.07311172,68389.0,68381.0,0.00022]
[1771692390119,0.0001435,68391.0,68383.0,0.07311749]
[1771692390915,0.0001435,68391.0,68386.0,0.07311433]
[1771692391338,0.0001435,68391.0,68385.0,0.07311534]
[1771692391944,0.0002,68393.0,68385.0,0.07311534]
[1771692392264,0.0002,68393.0,68386.0,0.07311347]
[1771692393234,0.0002,68393.0,68387.0,0.07311311]
[1771692393789,0.0002,68393.0,68388.0,0.07311222]
[1771692394144,0.0002,68393.0,68387.0,0.07311311]
[1771692398084,0.0002,68393.0,68386.0,0.0731123]
[1771692398636,0.0002,68393.0,68387.0,0.07311331]
[1771692402926,0.0002,68393.0,68387.0,0.07411331]
[1771692403357,0.0002,68393.0,68387.0,0.07311331]
[1771692405266,0.0002,68393.0,68387.0,0.07411331]
[1771692405421,0.0002,68393.0,68387.0,0.07311331]
[1771692407977,0.0002,68393.0,68387.0,0.07411331]
[1771692408287,0.0002,68393.0,68387.0,0.07311331]
[1771692409282,0.0002,68393.0,68387.0,0.07411331]
[1771692409485,0.0002,68393.0,68387.0,0.07311331]
[1771692409687,0.0002,68393.0,68386.0,0.0731123]
[1771692409903,0.07330756,68393.0,68386.0,0.0731123]
[1771692411312,0.07330756,68393.0,68387.0,0.001]
[1771692411485,0.0002,68393.0,68387.0,0.001]
[1771692411868,0.0002,68393.0,68387.0,0.0741132]
[1771692412079,0.0002,68393.0,68387.0,0.0731132]
[1771692412908,0.0002,68393.0,68387.0,0.0741132]
[1771692413088,0.0002,68393.0,68387.0,0.001]
[1771692414134,0.0002,68393.0,68387.0,0.07411305]
[1771692414754,0.0002,68393.0,68386.0,0.07333244]
[1771692414910,0.0002,68393.0,68387.0,0.07311331]
[1771692415595,0.0002,68393.0,68387.0,0.07411331]
[1771692415793,0.0002,68393.0,68387.0,0.07311331]
[1771692417722,0.0002,68393.0,68387.0,0.07411331]
[1771692417927,0.02312326,68398.0,68386.0,0.00022]
[1771692418154,0.07310227,68398.0,68390.0,0.07310985]
[1771692418406,0.07310329,68397.0,68389.0,0.07311081]
[1771692420193,0.07310401,68396.0,68389.0,0.07311081]
[1771692420594,0.07310401,68396.0,68389.0,0.07296734]
[1771692420995,0.07310401,68396.0,68389.0,0.07396734]
[1771692421199,0.07310401,68396.0,68389.0,0.001]
[1771692421375,0.07310401,68396.0,68388.0,0.07311224]
[1771692423751,0.07310401,68396.0,68388.0,0.07411224]
[1771692423999,0.07310479,68395.0,68388.0,0.07311224]
[1771692424352,0.07310479,68395.0,68388.0,0.07411224]
[1771692424550,0.07310479,68395.0,68388.0,0.07311224]
[1771692425073,0.07310479,68395.0,68388.0,0.07411224]
[1771692425674,0.07310479,68395.0,68388.0,0.07311224]
[1771692426861,0.0731058,68396.0,68386.0,0.07333372]
[1771692427048,0.24800117,68395.0,68384.0,0.07311596]
[1771692427233,0.02320026,68392.0,68384.0,0.07311596]
[1771692427585,0.02320026,68392.0,68386.0,0.00022]
[1771692429228,0.02320026,68392.0,68386.0,0.00122]
[1771692429425,0.02320026,68392.0,68386.0,0.0017174]
[1771692430389,0.02320026,68392.0,68386.0,0.00057393]
[1771692431719,0.02320026,68392.0,68386.0,0.00157393]
[1771692432153,0.02320026,68392.0,68386.0,0.00057393]
[1771692433580,0.02320026,68392.0,68386.0,0.00157393]
[1771692433786,0.02320026,68392.0,68386.0,0.00057393]
[1771692441364,0.02320026,68392.0,68386.0,0.07368827]
[1771692441742,0.02320026,68392.0,68386.0,0.0735448]
[1771692442378,0.0002,68393.0,68386.0,0.0735448]
[1771692443868,0.07310252,68398.0,68389.0,0.07311027]
[1771692444067,0.02372249,68403.0,68389.0,0.07311027]
[1771692444068,0.07310287,68397.0,68389.0,0.07311027]
[1771692444469,0.07310287,68397.0,68389.0,0.07341843]
[1771692448292,0.0002,68395.0,68389.0,0.07341843]
[1771692460616,0.07330494,68395.0,68388.0,0.07311207]
[1771692461752,0.07330494,68395.0,68388.0,0.07311218]
[1771692463815,0.0002,68395.0,68388.0,0.07311218]
[1771692465263,0.07310409,68396.0,68388.0,0.07311218]
[1771692465419,0.00016,68400.0,68397.0,0.0731019]
[1771692466053,0.00016,68400.0,68398.0,0.07310146]
[1771692467589,0.00036,68400.0,68398.0,0.07310146]
[1771692467787,0.07309343,68406.0,68399.0,0.07310048]
[1771692468662,0.07309156,68408.0,68399.0,0.07310048]
[1771692469265,0.0730931,68406.0,68398.0,0.07309969]
[1771692470226,0.0001223,68409.0,68396.0,0.02396232]
[1771692470402,0.0001223,68409.0,68402.0,0.07309655]
[1771692471301,0.19954358,68407.0,68402.0,0.07309655]
[1771692472653,0.19954358,68407.0,68401.0,0.07309802]
[1771692472861,0.02394358,68405.0,68390.0,0.00016]
[1771692473064,0.02394358,68405.0,68382.0,0.07333784]
[1771692473065,0.02394358,68392.0,68382.0,0.07333784]
[1771692473270,0.02394358,68392.0,68382.0,0.00022]
[1771692473595,0.02394358,68391.0,68386.0,0.07311434]
[1771692475084,0.02394358,68391.0,68386.0,0.07333434]
[1771692476817,0.02394358,68391.0,68386.0,0.00022]
[1771692479034,0.02394358,68391.0,68386.0,0.07333429]
[1771692479221,0.02394358,68391.0,68386.0,0.07433429]
[1771692479387,0.02394358,68391.0,68386.0,0.07333429]
[1771692481737,0.02394358,68391.0,68386.0,0.00022]
[1771692482794,0.02394358,68391.0,68386.0,0.07333435]
[1771692484748,0.02394358,68391.0,68387.0,0.07311324]
[1771692485142,0.02394358,68391.0,68386.0,0.07333437]
[1771692486571,0.02433258,68391.0,68386.0,0.07333437]
[1771692486904,0.02433258,68391.0,68387.0,0.07311243]
[1771692487454,0.07330479,68395.0,68388.0,0.0731121]
[1771692487455,0.0002,68395.0,68388.0,0.0731121]
[1771692487657,0.0002,68395.0,68390.0,0.07301967]
[1771692488258,0.0002,68395.0,68391.0,0.07310899]
[1771692488473,0.0002,68395.0,68389.0,0.07311012]
[1771692489404,0.0002,68391.0,68389.0,0.07311012]
[1771692492602,0.0002,68391.0,68390.0,0.0731101]
[1771692497106,0.0002,68391.0,68389.0,0.07311087]
[1771692502472,0.00011,68391.0,68389.0,0.07311087]
[1771692502695,0.02361058,68391.0,68386.0,0.00022]
[1771692503150,0.00011,68391.0,68387.0,0.07311331]
[1771692504147,0.00011,68391.0,68388.0,0.07311157]
[1771692505159,0.00011,68391.0,68384.0,0.29246404]
[1771692505160,0.07311765,68383.0,68375.0,0.07334533]